[Event "*** Titled Tuesday Blitz"]
[Site "Chess.com"]
[Date "2018.07.03"]
[Round "8"]
[White "Vamostodorecto"]
[Black "olksuna"]
[Result "0-1"]
[WhiteElo "2359"]
[BlackElo "2472"]
[TimeControl "180+2"]
[EndTime "14:40:55 PDT"]
[Termination "olksuna won by resignation"]

1. d4 {[%clk 0:03:01.9]} 1... Nf6 {[%clk 0:02:56.6]} 2. c4 {[%clk 0:03:02.4]}
2... e6 {[%clk 0:02:57.2]} 3. Nc3 {[%clk 0:03:02.3]} 3... Bb4 {[%clk 0:02:56.4]}
4. a3 {[%clk 0:03:02.1]} 4... Bxc3+ {[%clk 0:02:56.4]} 5. bxc3 {[%clk 0:03:04]}
5... c5 {[%clk 0:02:57.3]} 6. f3 {[%clk 0:03:03.5]} 6... Qa5 {[%clk 0:02:53.6]}
7. Bd2 {[%clk 0:03:02.3]} 7... Nc6 {[%clk 0:02:53.1]} 8. e4 {[%clk 0:03:01.6]}
8... d6 {[%clk 0:02:52.2]} 9. Bd3 {[%clk 0:03:00.8]} 9... e5 {[%clk 0:02:52.2]}
10. Ne2 {[%clk 0:03:00.6]} 10... O-O {[%clk 0:02:50.3]} 11. O-O {[%clk
0:02:59.4]} 11... b6 {[%clk 0:02:40.2]} 12. f4 {[%clk 0:02:57.1]} 12... Bg4
{[%clk 0:02:33.3]} 13. fxe5 {[%clk 0:02:55.7]} 13... dxe5 {[%clk 0:02:30.7]} 14.
d5 {[%clk 0:02:55.6]} 14... Ne7 {[%clk 0:02:30.5]} 15. Bg5 {[%clk 0:02:48.5]}
15... Bxe2 {[%clk 0:02:26]} 16. Qxe2 {[%clk 0:02:47.1]} 16... Ng6 {[%clk
0:02:27.1]} 17. Rxf6 {[%clk 0:02:40]} 17... gxf6 {[%clk 0:02:29]} 18. Bxf6
{[%clk 0:02:40.7]} 18... Qxc3 {[%clk 0:02:28.1]} 19. Rf1 {[%clk 0:02:36.9]}
19... h6 {[%clk 0:02:20.5]} 20. h4 {[%clk 0:02:27.2]} 20... Kh7 {[%clk
0:02:04.4]} 21. h5 {[%clk 0:02:26]} 21... Rg8 {[%clk 0:02:05.2]} 22. hxg6+
{[%clk 0:02:11.7]} 22... Rxg6 {[%clk 0:02:07.1]} 23. d6 {[%clk 0:02:00.6]} 23...
Rag8 {[%clk 0:01:52.7]} 24. Rf2 {[%clk 0:01:53]} 24... Qd4 {[%clk 0:01:49.9]}
25. Qf3 {[%clk 0:01:37.8]} 25... Rxg2+ {[%clk 0:01:36.8]} 26. Qxg2 {[%clk
0:01:30.7]} 26... Rxg2+ {[%clk 0:01:37.6]} 27. Kxg2 {[%clk 0:01:30.7]} 27...
Qxd3 {[%clk 0:01:39.2]} 28. Bxe5 {[%clk 0:01:27.7]} 28... Qxe4+ {[%clk
0:01:38.7]} 0-1

[Event "*** Titled Tuesday Blitz"]
[Site "Chess.com"]
[Date "2018.07.03"]
[Round "8"]
[White "Roachelley"]
[Black "51616516516"]
[Result "1-0"]
[WhiteElo "2326"]
[BlackElo "2202"]
[TimeControl "180+2"]
[EndTime "14:40:57 PDT"]
[Termination "Roachelley won by resignation"]

1. d4 {[%clk 0:03:01.9]} 1... Nf6 {[%clk 0:01:53]} 2. c4 {[%clk 0:03:02.3]} 2...
g6 {[%clk 0:01:49.5]} 3. Nc3 {[%clk 0:03:00.7]} 3... Bg7 {[%clk 0:01:50.9]} 4.
e4 {[%clk 0:03:01.7]} 4... d6 {[%clk 0:01:52.8]} 5. f3 {[%clk 0:03:02.3]} 5...
c6 {[%clk 0:01:53.9]} 6. Be3 {[%clk 0:03:03.6]} 6... a6 {[%clk 0:01:54.4]} 7.
Nge2 {[%clk 0:03:04.8]} 7... b5 {[%clk 0:01:55.3]} 8. cxb5 {[%clk 0:03:04.9]}
8... axb5 {[%clk 0:01:55.7]} 9. a3 {[%clk 0:03:03.6]} 9... Nbd7 {[%clk
0:01:50.3]} 10. Ng3 {[%clk 0:02:59.6]} 10... Nb6 {[%clk 0:01:48.8]} 11. d5
{[%clk 0:02:55.8]} 11... cxd5 {[%clk 0:01:48.4]} 12. Bxb5+ {[%clk 0:02:56.2]}
12... Bd7 {[%clk 0:01:49.6]} 13. Bxd7+ {[%clk 0:02:54.5]} 13... Qxd7 {[%clk
0:01:50.4]} 14. exd5 {[%clk 0:02:54.7]} 14... Nc4 {[%clk 0:01:47.8]} 15. Bd4
{[%clk 0:02:51]} 15... Nxb2 {[%clk 0:01:44.8]} 16. Qe2 {[%clk 0:02:50.5]} 16...
Na4 {[%clk 0:01:41.1]} 17. O-O {[%clk 0:02:42.6]} 17... O-O {[%clk 0:01:38]} 18.
Rfd1 {[%clk 0:01:49.6]} 18... Rfe8 {[%clk 0:01:34.9]} 19. Nce4 {[%clk
0:01:46.8]} 19... Nxe4 {[%clk 0:01:31.4]} 20. Nxe4 {[%clk 0:01:36.9]} 20...
Bxd4+ {[%clk 0:01:32.5]} 21. Rxd4 {[%clk 0:01:34.7]} 21... Rab8 {[%clk 0:01:17]}
22. Re1 {[%clk 0:01:29.6]} 22... Rb2 {[%clk 0:01:13.2]} 23. Nf6+ {[%clk
0:01:27.1]} 23... exf6 {[%clk 0:01:03.8]} 24. Qxe8+ {[%clk 0:01:29]} 24... Qxe8
{[%clk 0:01:04.2]} 25. Rxe8+ {[%clk 0:01:30.6]} 25... Kg7 {[%clk 0:01:06]} 26.
Rxa4 {[%clk 0:01:31.1]} 1-0

[Event "*** Titled Tuesday Blitz"]
[Site "Chess.com"]
[Date "2018.07.03"]
[Round "8"]
[White "ENEASZ"]
[Black "GMKrikor"]
[Result "1-0"]
[WhiteElo "2522"]
[BlackElo "2607"]
[TimeControl "180+2"]
[EndTime "14:41:19 PDT"]
[Termination "ENEASZ won by resignation"]

1. e4 {[%clk 0:03:01.9]} 1... c5 {[%clk 0:02:55.8]} 2. c3 {[%clk 0:03:02.7]}
2... d5 {[%clk 0:02:46.9]} 3. exd5 {[%clk 0:03:04.6]} 3... Qxd5 {[%clk
0:02:48.6]} 4. d4 {[%clk 0:03:05.5]} 4... g6 {[%clk 0:02:50.2]} 5. Nf3 {[%clk
0:03:04.4]} 5... Bg7 {[%clk 0:02:49.1]} 6. Na3 {[%clk 0:02:57.9]} 6... cxd4
{[%clk 0:02:43.2]} 7. Bc4 {[%clk 0:02:58.6]} 7... Qe4+ {[%clk 0:02:44.5]} 8. Be3
{[%clk 0:02:59.9]} 8... Nh6 {[%clk 0:02:45.6]} 9. cxd4 {[%clk 0:02:57.2]} 9...
O-O {[%clk 0:02:39.3]} 10. O-O {[%clk 0:02:57.3]} 10... Nc6 {[%clk 0:02:37.1]}
11. Nb5 {[%clk 0:02:52.4]} 11... Nf5 {[%clk 0:02:17.9]} 12. Re1 {[%clk
0:02:52.8]} 12... Nxe3 {[%clk 0:02:14.2]} 13. Rxe3 {[%clk 0:02:54.7]} 13... Qf4
{[%clk 0:02:15.5]} 14. g3 {[%clk 0:02:30.6]} 14... Qb8 {[%clk 0:02:05.2]} 15. d5
{[%clk 0:02:27.9]} 15... Na5 {[%clk 0:01:47]} 16. Be2 {[%clk 0:02:28.8]} 16...
Bxb2 {[%clk 0:01:36]} 17. Rxe7 {[%clk 0:01:50.7]} 17... Bxa1 {[%clk 0:01:24.7]}
18. Qxa1 {[%clk 0:01:52.6]} 18... Bg4 {[%clk 0:01:18]} 19. Qf6 {[%clk
0:01:41.5]} 19... Bxf3 {[%clk 0:01:06.8]} 20. Bxf3 {[%clk 0:01:43.4]} 20... Qd8
{[%clk 0:00:33]} 21. Nc7 {[%clk 0:01:41.9]} 21... Rc8 {[%clk 0:00:29.9]} 22. Ne6
{[%clk 0:01:40.9]} 1-0

[Event "*** Titled Tuesday Blitz"]
[Site "Chess.com"]
[Date "2018.07.03"]
[Round "8"]
[White "colegiodemadrid"]
[Black "Saitama_Hero"]
[Result "1-0"]
[WhiteElo "2236"]
[BlackElo "2333"]
[TimeControl "180+2"]
[EndTime "14:41:21 PDT"]
[Termination "colegiodemadrid won on time"]

1. e4 {[%clk 0:03:01.9]} 1... c5 {[%clk 0:02:59.4]} 2. Nf3 {[%clk 0:03:02]} 2...
e6 {[%clk 0:03:00.8]} 3. d4 {[%clk 0:03:02.4]} 3... cxd4 {[%clk 0:03:02.7]} 4.
Nxd4 {[%clk 0:03:03.9]} 4... Nf6 {[%clk 0:03:03.8]} 5. Nc3 {[%clk 0:03:05]} 5...
d6 {[%clk 0:03:03.9]} 6. g4 {[%clk 0:03:05.6]} 6... h6 {[%clk 0:03:03.9]} 7. h4
{[%clk 0:03:05.4]} 7... Nc6 {[%clk 0:03:03.5]} 8. Rg1 {[%clk 0:03:06.2]} 8... d5
{[%clk 0:03:03.7]} 9. exd5 {[%clk 0:03:02.9]} 9... Nxd5 {[%clk 0:03:04.2]} 10.
Nxd5 {[%clk 0:03:03.1]} 10... Qxd5 {[%clk 0:02:58.3]} 11. Be3 {[%clk 0:03:04.2]}
11... Bd7 {[%clk 0:02:33.4]} 12. Bg2 {[%clk 0:03:02.6]} 12... Qa5+ {[%clk
0:02:32.7]} 13. c3 {[%clk 0:03:02.6]} 13... Rd8 {[%clk 0:02:16.9]} 14. Qb3
{[%clk 0:03:01.2]} 14... e5 {[%clk 0:02:00]} 15. Nxc6 {[%clk 0:02:46.6]} 15...
Bxc6 {[%clk 0:02:01.9]} 16. Bxc6+ {[%clk 0:02:47.5]} 16... bxc6 {[%clk
0:02:03.2]} 17. Rd1 {[%clk 0:02:44]} 17... Bd6 {[%clk 0:01:38.7]} 18. g5 {[%clk
0:02:39.8]} 18... hxg5 {[%clk 0:01:32.1]} 19. hxg5 {[%clk 0:02:33.4]} 19... O-O
{[%clk 0:01:16.2]} 20. g6 {[%clk 0:02:34]} 20... e4 {[%clk 0:00:40.5]} 21. Rg5
{[%clk 0:02:24.9]} 21... Qc7 {[%clk 0:00:30.5]} 22. Rf5 {[%clk 0:02:15.9]} 22...
Qe7 {[%clk 0:00:04.5]} 23. Bg5 {[%clk 0:02:08]} 23... Qe6 {[%clk 0:00:02.7]} 24.
gxf7+ {[%clk 0:02:07.6]} 1-0

[Event "*** Titled Tuesday Blitz"]
[Site "Chess.com"]
[Date "2018.07.03"]
[Round "8"]
[White "Mbneu"]
[Black "Gr3egor"]
[Result "1-0"]
[WhiteElo "2269"]
[BlackElo "2362"]
[TimeControl "180+2"]
[EndTime "14:41:42 PDT"]
[Termination "Mbneu won on time"]

1. d4 {[%clk 0:02:44.5]} 1... Nf6 {[%clk 0:03:00.8]} 2. c4 {[%clk 0:02:45.2]}
2... e6 {[%clk 0:03:02.2]} 3. Nc3 {[%clk 0:02:45.8]} 3... Bb4 {[%clk 0:03:03.4]}
4. Bg5 {[%clk 0:02:46.7]} 4... h6 {[%clk 0:03:04.1]} 5. Bh4 {[%clk 0:02:46]}
5... d5 {[%clk 0:03:05.5]} 6. Nf3 {[%clk 0:02:45.3]} 6... g5 {[%clk 0:03:06]} 7.
Bg3 {[%clk 0:02:45.4]} 7... dxc4 {[%clk 0:03:07.1]} 8. e3 {[%clk 0:02:43.5]}
8... b5 {[%clk 0:03:07.8]} 9. Be2 {[%clk 0:02:37.8]} 9... Ne4 {[%clk 0:03:04.6]}
10. Be5 {[%clk 0:02:17]} 10... f6 {[%clk 0:03:02.7]} 11. Qc2 {[%clk 0:02:16]}
11... Nxc3 {[%clk 0:02:52.4]} 12. bxc3 {[%clk 0:02:09.5]} 12... Bxc3+ {[%clk
0:02:53.5]} 13. Qxc3 {[%clk 0:02:07.9]} 13... fxe5 {[%clk 0:02:54.7]} 14. Nxe5
{[%clk 0:02:08.7]} 14... Bb7 {[%clk 0:02:52.8]} 15. Bh5+ {[%clk 0:02:05.2]}
15... Ke7 {[%clk 0:02:53.2]} 16. Ng6+ {[%clk 0:02:02.2]} 16... Kd7 {[%clk
0:02:54.5]} 17. d5 {[%clk 0:01:57.9]} 17... Rg8 {[%clk 0:02:50.7]} 18. dxe6+
{[%clk 0:01:51]} 18... Kxe6 {[%clk 0:02:32.5]} 19. Qe5+ {[%clk 0:01:41.8]} 19...
Kf7 {[%clk 0:02:33.2]} 20. Ne7+ {[%clk 0:01:28.1]} 1-0

[Event "*** Titled Tuesday Blitz"]
[Site "Chess.com"]
[Date "2018.07.03"]
[Round "8"]
[White "SamCopeland"]
[Black "sergeikim"]
[Result "0-1"]
[WhiteElo "1971"]
[BlackElo "2404"]
[TimeControl "180+2"]
[EndTime "14:42:08 PDT"]
[Termination "sergeikim won by resignation"]

1. e4 {[%clk 0:03:01.9]} 1... e5 {[%clk 0:03:00]} 2. Nf3 {[%clk 0:02:56.5]} 2...
Nc6 {[%clk 0:03:00.9]} 3. Bc4 {[%clk 0:02:54]} 3... Bc5 {[%clk 0:03:00.9]} 4. b4
{[%clk 0:02:51.8]} 4... Bxb4 {[%clk 0:03:01.1]} 5. c3 {[%clk 0:02:52.8]} 5...
Ba5 {[%clk 0:03:01.1]} 6. d4 {[%clk 0:02:53.2]} 6... d6 {[%clk 0:03:01.3]} 7.
dxe5 {[%clk 0:02:38.5]} 7... dxe5 {[%clk 0:03:00.3]} 8. Qxd8+ {[%clk 0:02:30.8]}
8... Nxd8 {[%clk 0:03:00.3]} 9. Nxe5 {[%clk 0:02:30.5]} 9... Nf6 {[%clk
0:03:01.1]} 10. Bg5 {[%clk 0:02:18.8]} 10... Be6 {[%clk 0:02:48.7]} 11. f3
{[%clk 0:01:29.3]} 11... Nd7 {[%clk 0:02:26.1]} 12. Bxe6 {[%clk 0:01:18.5]}
12... Nxe6 {[%clk 0:02:25]} 13. Nxd7 {[%clk 0:01:10.5]} 13... Nxg5 {[%clk
0:02:20.4]} 14. Nc5 {[%clk 0:01:00.6]} 14... O-O-O {[%clk 0:02:20.1]} 15. h4
{[%clk 0:00:54.4]} 15... Bb6 {[%clk 0:02:15.2]} 16. Na4 {[%clk 0:00:45.9]} 16...
Ne6 {[%clk 0:02:11.5]} 17. Nxb6+ {[%clk 0:00:46]} 17... axb6 {[%clk 0:02:12.6]}
18. Nd2 {[%clk 0:00:39.8]} 18... Rd3 {[%clk 0:02:12]} 19. Rc1 {[%clk 0:00:33]}
19... Rhd8 {[%clk 0:02:10.9]} 20. Rc2 {[%clk 0:00:33.7]} 20... Nf4 {[%clk
0:02:05.8]} 21. g3 {[%clk 0:00:19.3]} 21... Re3+ {[%clk 0:02:01.2]} 22. Kf2
{[%clk 0:00:15.8]} 22... Re2+ {[%clk 0:02:00.8]} 23. Kf1 {[%clk 0:00:16.7]}
23... Rdxd2 {[%clk 0:01:52.3]} 24. Rxd2 {[%clk 0:00:18.6]} 24... Rxd2 {[%clk
0:01:53.3]} 25. gxf4 {[%clk 0:00:20.3]} 25... Rxa2 {[%clk 0:01:53.9]} 26. Rh3
{[%clk 0:00:20]} 26... Rc2 {[%clk 0:01:47.8]} 27. Rg3 {[%clk 0:00:20.8]} 27...
g6 {[%clk 0:01:47.2]} 28. h5 {[%clk 0:00:22]} 28... Rxc3 {[%clk 0:01:47]} 29.
hxg6 {[%clk 0:00:23.9]} 29... hxg6 {[%clk 0:01:47.4]} 30. Ke2 {[%clk 0:00:23.3]}
30... b5 {[%clk 0:01:45.8]} 31. Rh3 {[%clk 0:00:23.9]} 31... b4 {[%clk
0:01:41.6]} 32. Rh7 {[%clk 0:00:23.8]} 32... b3 {[%clk 0:01:40.9]} 33. Rxf7
{[%clk 0:00:24.7]} 33... b2 {[%clk 0:01:40.3]} 0-1

[Event "*** Titled Tuesday Blitz"]
[Site "Chess.com"]
[Date "2018.07.03"]
[Round "8"]
[White "Parhamov"]
[Black "Swarnapuri"]
[Result "1-0"]
[WhiteElo "2768"]
[BlackElo "2587"]
[TimeControl "180+2"]
[EndTime "14:42:12 PDT"]
[Termination "Parhamov won by resignation"]

1. f4 {[%clk 0:03:00.9]} 1... Nc6 {[%clk 0:03:01.9]} 2. Nf3 {[%clk 0:03:01.2]}
2... g6 {[%clk 0:03:00.8]} 3. e4 {[%clk 0:02:59.8]} 3... Bg7 {[%clk 0:03:00.7]}
4. d4 {[%clk 0:03:00.9]} 4... d6 {[%clk 0:02:53.9]} 5. Be3 {[%clk 0:03:00.4]}
5... Nf6 {[%clk 0:02:48.9]} 6. Nbd2 {[%clk 0:02:56.2]} 6... O-O {[%clk
0:02:45.6]} 7. c3 {[%clk 0:02:56.1]} 7... e5 {[%clk 0:02:46]} 8. fxe5 {[%clk
0:02:55.1]} 8... dxe5 {[%clk 0:02:46.6]} 9. d5 {[%clk 0:02:56.6]} 9... Ne7
{[%clk 0:02:45.2]} 10. c4 {[%clk 0:02:51.1]} 10... Ng4 {[%clk 0:02:38.6]} 11.
Bg1 {[%clk 0:02:51.6]} 11... f5 {[%clk 0:02:39.5]} 12. Bd3 {[%clk 0:02:50.3]}
12... fxe4 {[%clk 0:02:29.1]} 13. Nxe4 {[%clk 0:02:51.2]} 13... Nf5 {[%clk
0:02:30.7]} 14. Qe2 {[%clk 0:02:47.1]} 14... Nd4 {[%clk 0:02:19.2]} 15. Bxd4
{[%clk 0:02:43.8]} 15... exd4 {[%clk 0:02:21.1]} 16. O-O-O {[%clk 0:02:44.6]}
16... Bf5 {[%clk 0:02:15.8]} 17. Nc5 {[%clk 0:02:37]} 17... Ne3 {[%clk
0:02:09.7]} 18. Bxf5 {[%clk 0:02:37.3]} 18... Rxf5 {[%clk 0:02:02.9]} 19. Ne6
{[%clk 0:02:38]} 19... Qf6 {[%clk 0:01:52.6]} 20. Nfxd4 {[%clk 0:02:22.9]} 20...
Nxd1 {[%clk 0:01:45]} 21. Nxf5 {[%clk 0:02:22]} 21... Qxf5 {[%clk 0:01:38.8]}
22. Nxg7 {[%clk 0:02:21.9]} 22... Qf4+ {[%clk 0:01:33.7]} 23. Kxd1 {[%clk
0:02:22.7]} 23... Kxg7 {[%clk 0:01:30.9]} 24. Rf1 {[%clk 0:02:21.5]} 24... Qd4+
{[%clk 0:01:28]} 25. Kc2 {[%clk 0:02:22.1]} 25... b5 {[%clk 0:01:22.2]} 26. b3
{[%clk 0:02:09.8]} 26... bxc4 {[%clk 0:01:20.8]} 27. Qxc4 {[%clk 0:02:10.7]}
27... Qe5 {[%clk 0:01:17.8]} 28. Qc3 {[%clk 0:02:00.9]} 28... Re8 {[%clk
0:01:19.1]} 29. Qxe5+ {[%clk 0:02:01.9]} 29... Rxe5 {[%clk 0:01:21]} 30. Rd1
{[%clk 0:02:03.5]} 30... Kf7 {[%clk 0:01:17.4]} 31. Kc3 {[%clk 0:02:04.2]} 31...
Ke7 {[%clk 0:01:16.4]} 32. Rd2 {[%clk 0:01:59.2]} 32... Kd6 {[%clk 0:01:16.7]}
33. Kc4 {[%clk 0:02:00.2]} 33... a6 {[%clk 0:01:12.2]} 34. Kb4 {[%clk
0:02:00.4]} 34... Rh5 {[%clk 0:00:53.9]} 35. h3 {[%clk 0:02:00.5]} 35... Rxd5
{[%clk 0:00:36.8]} 36. Rxd5+ {[%clk 0:02:00.9]} 36... Kxd5 {[%clk 0:00:38.7]}
37. Ka5 {[%clk 0:02:02.5]} 37... Kc5 {[%clk 0:00:38.4]} 38. Kxa6 {[%clk
0:02:03.6]} 38... Kb4 {[%clk 0:00:39.4]} 39. Kb7 {[%clk 0:02:04.8]} 39... c5
{[%clk 0:00:38.5]} 40. Kc6 {[%clk 0:02:05.5]} 40... c4 {[%clk 0:00:38.3]} 41.
bxc4 {[%clk 0:02:06.3]} 41... Kxc4 {[%clk 0:00:40.2]} 42. Kd6 {[%clk 0:02:07.8]}
1-0

[Event "*** Titled Tuesday Blitz"]
[Site "Chess.com"]
[Date "2018.07.03"]
[Round "8"]
[White "Zaven_ChessMood"]
[Black "pultineviciuspaulius"]
[Result "1-0"]
[WhiteElo "2868"]
[BlackElo "2624"]
[TimeControl "180+2"]
[EndTime "14:42:48 PDT"]
[Termination "Zaven_ChessMood won on time"]

1. e4 {[%clk 0:02:56.2]} 1... c6 {[%clk 0:02:56]} 2. d3 {[%clk 0:02:54.8]} 2...
d5 {[%clk 0:02:56.8]} 3. Nd2 {[%clk 0:02:56.4]} 3... g6 {[%clk 0:02:58.1]} 4.
Ngf3 {[%clk 0:02:57.7]} 4... Bg7 {[%clk 0:02:59.6]} 5. g3 {[%clk 0:02:59.4]}
5... e5 {[%clk 0:03:01]} 6. Bg2 {[%clk 0:03:01.1]} 6... Ne7 {[%clk 0:03:02.1]}
7. O-O {[%clk 0:03:02.7]} 7... O-O {[%clk 0:03:03.7]} 8. Re1 {[%clk 0:03:04.3]}
8... Re8 {[%clk 0:03:04.1]} 9. exd5 {[%clk 0:03:02.4]} 9... Nxd5 {[%clk
0:03:04.6]} 10. Nc4 {[%clk 0:03:02.8]} 10... Qc7 {[%clk 0:03:05.1]} 11. Ncxe5
{[%clk 0:02:56.9]} 11... Rxe5 {[%clk 0:02:56.2]} 12. Nxe5 {[%clk 0:02:56]} 12...
Bxe5 {[%clk 0:02:57.6]} 13. d4 {[%clk 0:02:57.6]} 13... Bf6 {[%clk 0:02:53.5]}
14. Re8+ {[%clk 0:02:41]} 14... Kg7 {[%clk 0:02:54]} 15. Qd2 {[%clk 0:02:37.1]}
15... g5 {[%clk 0:02:54.2]} 16. h4 {[%clk 0:02:31.8]} 16... h6 {[%clk 0:02:55]}
17. hxg5 {[%clk 0:02:29.4]} 17... hxg5 {[%clk 0:02:56.9]} 18. Qe2 {[%clk
0:02:30.8]} 18... Bd7 {[%clk 0:02:30.1]} 19. Re4 {[%clk 0:02:27]} 19... Bf5
{[%clk 0:02:28.7]} 20. Re8 {[%clk 0:02:27]} 20... Bd7 {[%clk 0:02:29.3]} 21. Re5
{[%clk 0:02:25.6]} 21... Bxe5 {[%clk 0:02:23.7]} 22. dxe5 {[%clk 0:02:25.7]}
22... Bf5 {[%clk 0:01:29.2]} 23. Bxg5 {[%clk 0:02:20.2]} 23... Nd7 {[%clk
0:01:27.7]} 24. c4 {[%clk 0:02:19.9]} 24... N5b6 {[%clk 0:01:24.2]} 25. Bf4
{[%clk 0:02:15.4]} 25... Re8 {[%clk 0:01:17.1]} 26. Qh5 {[%clk 0:02:07.5]} 26...
Bg6 {[%clk 0:01:01.9]} 27. Qh6+ {[%clk 0:02:07.7]} 27... Kg8 {[%clk 0:01:03.5]}
28. e6 {[%clk 0:02:07.3]} 28... Ne5 {[%clk 0:01:00.7]} 29. exf7+ {[%clk
0:02:02.5]} 29... Qxf7 {[%clk 0:01:01.3]} 30. b3 {[%clk 0:02:02]} 30... Nd3
{[%clk 0:00:59.1]} 31. Be3 {[%clk 0:02:02.3]} 31... Nd7 {[%clk 0:00:59.8]} 32.
Bd4 {[%clk 0:01:59.7]} 32... N7e5 {[%clk 0:00:58]} 33. f4 {[%clk 0:01:59.5]}
33... c5 {[%clk 0:00:36.3]} 34. Bxe5 {[%clk 0:01:50.7]} 34... Nxe5 {[%clk
0:00:23.3]} 35. Bd5 {[%clk 0:01:48.2]} 35... Nf3+ {[%clk 0:00:14.7]} 36. Kf2
{[%clk 0:01:46.6]} 36... Re6 {[%clk 0:00:13.2]} 37. Rh1 {[%clk 0:01:45.1]} 37...
Nh2 {[%clk 0:00:02.1]} 38. Rxh2 {[%clk 0:01:44.4]} 1-0

[Event "*** Titled Tuesday Blitz"]
[Site "Chess.com"]
[Date "2018.07.03"]
[Round "8"]
[White "nitpicker"]
[Black "Grebeniuk-S"]
[Result "0-1"]
[WhiteElo "2104"]
[BlackElo "2451"]
[TimeControl "180+2"]
[EndTime "14:42:56 PDT"]
[Termination "Grebeniuk-S won on time"]

1. d4 {[%clk 0:03:01.9]} 1... f5 {[%clk 0:02:59.8]} 2. c4 {[%clk 0:03:00]} 2...
Nf6 {[%clk 0:03:00.6]} 3. Nf3 {[%clk 0:02:55.5]} 3... d6 {[%clk 0:03:01]} 4. b3
{[%clk 0:02:49]} 4... g6 {[%clk 0:03:01.6]} 5. Nc3 {[%clk 0:02:43.2]} 5... Bg7
{[%clk 0:03:02.9]} 6. g3 {[%clk 0:02:44]} 6... O-O {[%clk 0:03:04.8]} 7. Bg2
{[%clk 0:02:44.8]} 7... c6 {[%clk 0:03:05.4]} 8. O-O {[%clk 0:02:45]} 8... a5
{[%clk 0:03:06.9]} 9. Bb2 {[%clk 0:02:42.8]} 9... Qc7 {[%clk 0:03:06.3]} 10. Rc1
{[%clk 0:02:41]} 10... Na6 {[%clk 0:03:07.4]} 11. d5 {[%clk 0:02:40.8]} 11...
Nc5 {[%clk 0:03:06.4]} 12. Nd4 {[%clk 0:02:34.4]} 12... Bd7 {[%clk 0:03:06.3]}
13. a3 {[%clk 0:02:34.5]} 13... e5 {[%clk 0:02:57.7]} 14. dxe6 {[%clk
0:02:31.3]} 14... Nxe6 {[%clk 0:02:59.1]} 15. Nxe6 {[%clk 0:02:24.9]} 15... Bxe6
{[%clk 0:03:01]} 16. Nd5 {[%clk 0:02:23.3]} 16... Bxd5 {[%clk 0:02:46.7]} 17.
cxd5 {[%clk 0:02:03.8]} 17... c5 {[%clk 0:02:47.5]} 18. Qd3 {[%clk 0:01:52.6]}
18... Qd7 {[%clk 0:02:36.6]} 19. a4 {[%clk 0:01:30.2]} 19... Rfe8 {[%clk
0:02:32.7]} 20. e3 {[%clk 0:01:30]} 20... Ng4 {[%clk 0:02:26.7]} 21. Bxg7 {[%clk
0:01:16.9]} 21... Qxg7 {[%clk 0:02:28.6]} 22. Rfd1 {[%clk 0:01:13.6]} 22... Ra6
{[%clk 0:02:20.5]} 23. Qb5 {[%clk 0:01:08.9]} 23... Kf8 {[%clk 0:02:11.5]} 24.
Bf1 {[%clk 0:00:58.5]} 24... Ne5 {[%clk 0:02:04]} 25. Qe2 {[%clk 0:00:55.3]}
25... Rb6 {[%clk 0:02:01.5]} 26. Qc2 {[%clk 0:00:56.1]} 26... Rb4 {[%clk
0:02:00.5]} 27. Bb5 {[%clk 0:00:51]} 27... Re7 {[%clk 0:02:00]} 28. Kg2 {[%clk
0:00:50.8]} 28... Ng4 {[%clk 0:02:00]} 29. h3 {[%clk 0:00:42]} 29... Nf6 {[%clk
0:02:01.3]} 30. Bc4 {[%clk 0:00:31]} 30... h5 {[%clk 0:01:52.5]} 31. Kh2 {[%clk
0:00:22.1]} 31... Ne4 {[%clk 0:01:51.5]} 32. Rg1 {[%clk 0:00:20.9]} 32... Qe5
{[%clk 0:01:50.5]} 33. Kh1 {[%clk 0:00:18.4]} 33... Rh7 {[%clk 0:01:50.2]} 34.
Rce1 {[%clk 0:00:15.4]} 34... Qc3 {[%clk 0:01:44.2]} 35. Qxc3 {[%clk 0:00:14.8]}
35... Nxc3 {[%clk 0:01:46.1]} 36. f3 {[%clk 0:00:12.6]} 36... Nxa4 {[%clk
0:01:39.7]} 37. Ra1 {[%clk 0:00:10.6]} 37... Nb6 {[%clk 0:01:29.9]} 38. Rxa5
{[%clk 0:00:08.1]} 38... Nxc4 {[%clk 0:01:31]} 39. bxc4 {[%clk 0:00:07.9]} 39...
Rxc4 {[%clk 0:01:32.9]} 0-1

[Event "*** Titled Tuesday Blitz"]
[Site "Chess.com"]
[Date "2018.07.03"]
[Round "8"]
[White "Blitzstream"]
[Black "TenisMaster"]
[Result "1-0"]
[WhiteElo "2496"]
[BlackElo "2725"]
[TimeControl "180+2"]
[EndTime "14:43:03 PDT"]
[Termination "Blitzstream won by resignation"]

1. d4 {[%clk 0:03:01.9]} 1... Nf6 {[%clk 0:02:59.9]} 2. Bg5 {[%clk 0:03:02.3]}
2... e6 {[%clk 0:02:59.6]} 3. e4 {[%clk 0:03:03]} 3... h6 {[%clk 0:03:00.3]} 4.
Bxf6 {[%clk 0:03:03.6]} 4... Qxf6 {[%clk 0:03:02.2]} 5. c3 {[%clk 0:03:05.1]}
5... d6 {[%clk 0:03:00.4]} 6. Bd3 {[%clk 0:03:06]} 6... g6 {[%clk 0:03:00.8]} 7.
Ne2 {[%clk 0:03:07.1]} 7... Bg7 {[%clk 0:02:55.1]} 8. O-O {[%clk 0:03:07.5]}
8... Qe7 {[%clk 0:02:54]} 9. f4 {[%clk 0:03:08.3]} 9... e5 {[%clk 0:02:54.8]}
10. Nd2 {[%clk 0:03:07.1]} 10... O-O {[%clk 0:02:54.1]} 11. Qb3 {[%clk
0:02:37.7]} 11... exd4 {[%clk 0:02:31]} 12. cxd4 {[%clk 0:02:31.3]} 12... Nc6
{[%clk 0:02:03.8]} 13. d5 {[%clk 0:02:19]} 13... Nb8 {[%clk 0:01:55.2]} 14. Rac1
{[%clk 0:01:54.6]} 14... c6 {[%clk 0:01:55.5]} 15. dxc6 {[%clk 0:01:51.5]} 15...
Nxc6 {[%clk 0:01:54.9]} 16. Kh1 {[%clk 0:01:36.6]} 16... Be6 {[%clk 0:01:48.5]}
17. Qa3 {[%clk 0:01:25.2]} 17... Rfe8 {[%clk 0:01:34.7]} 18. f5 {[%clk
0:01:22.1]} 18... gxf5 {[%clk 0:01:32.3]} 19. exf5 {[%clk 0:01:23]} 19... Bd5
{[%clk 0:01:33.2]} 20. Nf4 {[%clk 0:01:22.2]} 20... Qe5 {[%clk 0:01:12.7]} 21.
f6 {[%clk 0:01:22.6]} 21... Bf8 {[%clk 0:01:08.3]} 22. Nc4 {[%clk 0:00:54]}
22... Qg5 {[%clk 0:00:39.9]} 23. Nxd5 {[%clk 0:00:47.5]} 23... Qxd5 {[%clk
0:00:41.8]} 24. Bb1 {[%clk 0:00:25.2]} 24... Qg5 {[%clk 0:00:26.2]} 25. Qd3
{[%clk 0:00:19.2]} 25... Qg6 {[%clk 0:00:17.1]} 26. Qxg6+ {[%clk 0:00:19.8]}
26... fxg6 {[%clk 0:00:14.4]} 27. f7+ {[%clk 0:00:21.7]} 1-0